[Event "Late-Titled-Tuesday-Blitz-February-06-2024"]
[Site "Chess.com"]
[Date "2024.02.06"]
[Round "6"]
[White "DavidGavrilescu18"]
[Black "h4parah5"]
[Result "0-1"]
[WhiteElo "2777"]
[BlackElo "2969"]
[TimeControl "180+1"]
[EndTime "15:03:48 PST"]
[Termination "h4parah5 won by resignation"]

1. e4 {[%clk 0:03:00.9]} 1... c5 {[%clk 0:02:59.4]} 2. Nf3 {[%clk 0:02:57]} 2...
e6 {[%clk 0:02:59.7]} 3. b3 {[%clk 0:02:56.6]} 3... Nc6 {[%clk 0:02:59.1]} 4.
Bb2 {[%clk 0:02:56.6]} 4... a6 {[%clk 0:02:59.3]} 5. c4 {[%clk 0:02:56.8]} 5...
Qc7 {[%clk 0:02:58]} 6. d4 {[%clk 0:02:56]} 6... cxd4 {[%clk 0:02:54.9]} 7. Nxd4
{[%clk 0:02:56.9]} 7... Qe5 {[%clk 0:02:52.7]} 8. Bc3 {[%clk 0:02:12.4]} 8...
Qxe4+ {[%clk 0:02:44.9]} 9. Be2 {[%clk 0:02:11.1]} 9... Qxg2 {[%clk 0:02:35.8]}
10. Bf3 {[%clk 0:02:10.2]} 10... Qg5 {[%clk 0:02:35.2]} 11. Nd2 {[%clk
0:02:07.3]} 11... Nf6 {[%clk 0:02:20.3]} 12. Qe2 {[%clk 0:02:01.7]} 12... Qe5
{[%clk 0:02:14.9]} 13. Nxc6 {[%clk 0:01:46.6]} 13... Qxc3 {[%clk 0:02:08.6]} 14.
O-O {[%clk 0:01:07]} 14... bxc6 {[%clk 0:02:06.1]} 15. Rac1 {[%clk 0:01:07.9]}
15... Qd4 {[%clk 0:02:04.7]} 16. Rfd1 {[%clk 0:01:07.9]} 16... Qf4 {[%clk
0:02:04]} 17. c5 {[%clk 0:01:06.9]} 17... Qg5+ {[%clk 0:01:45.3]} 18. Kh1 {[%clk
0:01:06.9]} 18... Bxc5 {[%clk 0:01:44.7]} 19. Rg1 {[%clk 0:01:05.8]} 19... Qf5
{[%clk 0:01:44.7]} 20. Ne4 {[%clk 0:00:59.5]} 20... Be7 {[%clk 0:01:42.3]} 21.
Rxg7 {[%clk 0:00:57.1]} 21... Nxe4 {[%clk 0:01:38.7]} 22. Bxe4 {[%clk 0:00:58]}
22... Qe5 {[%clk 0:01:33.9]} 23. Rxf7 {[%clk 0:00:55.7]} 23... Kxf7 {[%clk
0:01:30.3]} 24. Bg6+ {[%clk 0:00:55.9]} 24... Kf6 {[%clk 0:01:30.5]} 0-1

[Event "Late-Titled-Tuesday-Blitz-February-06-2024"]
[Site "Chess.com"]
[Date "2024.02.06"]
[Round "6"]
[White "Philippians46"]
[Black "KuzubovYuriy"]
[Result "1-0"]
[WhiteElo "2695"]
[BlackElo "2894"]
[TimeControl "180+1"]
[EndTime "15:04:18 PST"]
[Termination "Philippians46 won by checkmate"]

1. d4 {[%clk 0:03:00.9]} 1... g6 {[%clk 0:03:00.4]} 2. e4 {[%clk 0:03:00.3]}
2... Bg7 {[%clk 0:03:00.9]} 3. Nc3 {[%clk 0:03:01.2]} 3... d6 {[%clk 0:03:01.4]}
4. Be3 {[%clk 0:03:01.3]} 4... Nc6 {[%clk 0:02:59.9]} 5. Qd2 {[%clk 0:02:59.7]}
5... e5 {[%clk 0:02:59.2]} 6. dxe5 {[%clk 0:03:00]} 6... dxe5 {[%clk 0:02:59.5]}
7. Qxd8+ {[%clk 0:02:59.9]} 7... Nxd8 {[%clk 0:02:58.7]} 8. Nb5 {[%clk
0:02:41.5]} 8... Ne6 {[%clk 0:02:54]} 9. Bc4 {[%clk 0:02:41.9]} 9... a6 {[%clk
0:02:44.3]} 10. Nc3 {[%clk 0:02:38.8]} 10... Nf6 {[%clk 0:02:38.5]} 11. f3
{[%clk 0:02:36.2]} 11... b5 {[%clk 0:02:31.2]} 12. Bb3 {[%clk 0:02:33.4]} 12...
Bb7 {[%clk 0:02:28]} 13. Bxe6 {[%clk 0:02:29.1]} 13... fxe6 {[%clk 0:02:25.9]}
14. Nge2 {[%clk 0:02:30]} 14... Nd7 {[%clk 0:02:22.9]} 15. Nc1 {[%clk
0:02:28.6]} 15... c5 {[%clk 0:02:19.1]} 16. Nb3 {[%clk 0:02:28.5]} 16... Rc8
{[%clk 0:02:18.4]} 17. O-O-O {[%clk 0:02:28.4]} 17... Bf8 {[%clk 0:02:02.4]} 18.
Rd2 {[%clk 0:02:21.7]} 18... Be7 {[%clk 0:01:27.3]} 19. Rhd1 {[%clk 0:02:20]}
19... Bc6 {[%clk 0:01:27.4]} 20. Na5 {[%clk 0:02:19.8]} 20... Nb8 {[%clk
0:01:27.2]} 21. Ne2 {[%clk 0:02:10]} 21... Ba8 {[%clk 0:01:18.2]} 22. c3 {[%clk
0:01:48.8]} 22... Kf7 {[%clk 0:01:08.9]} 23. Kc2 {[%clk 0:01:47.5]} 23... Rhe8
{[%clk 0:01:06.1]} 24. Nc1 {[%clk 0:01:46.5]} 24... Nc6 {[%clk 0:00:51]} 25.
Nxc6 {[%clk 0:01:45.8]} 25... Bxc6 {[%clk 0:00:50.5]} 26. Nd3 {[%clk 0:01:46.6]}
26... Ba8 {[%clk 0:00:39.9]} 27. Nxe5+ {[%clk 0:01:46.3]} 27... Kg8 {[%clk
0:00:38]} 28. Rd7 {[%clk 0:01:45.9]} 28... Bf6 {[%clk 0:00:34.1]} 29. Ng4 {[%clk
0:01:46.1]} 29... Bg7 {[%clk 0:00:34.4]} 30. Bh6 {[%clk 0:01:46.4]} 30... Bh8
{[%clk 0:00:34.5]} 31. Bg5 {[%clk 0:01:45.8]} 31... Rf8 {[%clk 0:00:24.5]} 32.
Nh6# {[%clk 0:01:46.1]} 1-0

[Event "Late-Titled-Tuesday-Blitz-February-06-2024"]
[Site "Chess.com"]
[Date "2024.02.06"]
[Round "6"]
[White "FMOlexandrProhorov"]
[Black "masterofpuppets2"]
[Result "0-1"]
[WhiteElo "2298"]
[BlackElo "2506"]
[TimeControl "180+1"]
[EndTime "15:04:22 PST"]
[Termination "masterofpuppets2 won by resignation"]

1. e4 {[%clk 0:03:00.9]} 1... c6 {[%clk 0:03:00.3]} 2. d4 {[%clk 0:02:59.3]}
2... d5 {[%clk 0:03:01.2]} 3. e5 {[%clk 0:02:59.7]} 3... c5 {[%clk 0:03:01.4]}
4. dxc5 {[%clk 0:02:56.5]} 4... e6 {[%clk 0:03:01.8]} 5. Be3 {[%clk 0:02:53.3]}
5... Nh6 {[%clk 0:03:01.3]} 6. b4 {[%clk 0:02:44.7]} 6... Nf5 {[%clk 0:02:57.5]}
7. c3 {[%clk 0:02:35.1]} 7... Nxe3 {[%clk 0:02:45.1]} 8. fxe3 {[%clk 0:02:35.3]}
8... a5 {[%clk 0:02:45.4]} 9. a3 {[%clk 0:02:33.5]} 9... b6 {[%clk 0:02:40.2]}
10. cxb6 {[%clk 0:02:28.2]} 10... axb4 {[%clk 0:02:37.9]} 11. Bb5+ {[%clk
0:01:59.3]} 11... Nd7 {[%clk 0:02:37.4]} 12. Qb3 {[%clk 0:01:52.1]} 12... Qxb6
{[%clk 0:02:32]} 13. Bxd7+ {[%clk 0:01:51.3]} 13... Bxd7 {[%clk 0:02:29.1]} 14.
Kf2 {[%clk 0:01:48.8]} 14... Ba4 {[%clk 0:02:08.2]} 15. axb4 {[%clk 0:01:40.5]}
15... Bxb3 {[%clk 0:02:05.3]} 16. Rxa8+ {[%clk 0:01:40.5]} 16... Kd7 {[%clk
0:02:05.8]} 17. Nd2 {[%clk 0:01:37.3]} 17... Bc4 {[%clk 0:02:03.6]} 18. Nxc4
{[%clk 0:01:31]} 18... dxc4 {[%clk 0:02:03.4]} 19. Ne2 {[%clk 0:01:30.3]} 19...
g6 {[%clk 0:01:06.3]} 20. Rd1+ {[%clk 0:01:27.3]} 20... Ke7 {[%clk 0:00:51.9]}
21. Rdd8 {[%clk 0:01:24.2]} 21... Qxd8 {[%clk 0:00:50.2]} 22. Rxd8 {[%clk
0:01:16.6]} 22... Kxd8 {[%clk 0:00:50.6]} 23. Nd4 {[%clk 0:01:11.7]} 23... Bg7
{[%clk 0:00:45]} 0-1

[Event "Late-Titled-Tuesday-Blitz-February-06-2024"]
[Site "Chess.com"]
[Date "2024.02.06"]
[Round "6"]
[White "cthake"]
[Black "EcosseKillie"]
[Result "1-0"]
[WhiteElo "1822"]
[BlackElo "2232"]
[TimeControl "180+1"]
[EndTime "15:04:26 PST"]
[Termination "cthake won by resignation"]

1. e4 {[%clk 0:03:00.9]} 1... Nf6 {[%clk 0:02:58.9]} 2. e5 {[%clk 0:02:59]} 2...
Ne4 {[%clk 0:02:59.2]} 3. d4 {[%clk 0:02:53.8]} 3... e6 {[%clk 0:02:59.3]} 4.
Qg4 {[%clk 0:02:43.7]} 4... h5 {[%clk 0:02:55.3]} 5. Qxe4 {[%clk 0:02:41.9]}
5... g6 {[%clk 0:02:32.1]} 6. Nf3 {[%clk 0:02:39.6]} 6... c5 {[%clk 0:02:31.3]}
7. Bg5 {[%clk 0:02:34.5]} 7... Qb6 {[%clk 0:02:30.5]} 8. b3 {[%clk 0:02:23.5]}
8... cxd4 {[%clk 0:02:29.7]} 9. Bf6 {[%clk 0:02:14.2]} 9... Rg8 {[%clk
0:02:27.6]} 10. Nxd4 {[%clk 0:02:12]} 10... Nc6 {[%clk 0:02:24.2]} 11. Nxc6
{[%clk 0:02:05.8]} 11... bxc6 {[%clk 0:02:23.4]} 12. Nd2 {[%clk 0:01:53.9]}
12... Bc5 {[%clk 0:02:19.7]} 13. Bh4 {[%clk 0:01:45]} 13... Bd4 {[%clk
0:02:13.3]} 14. Rd1 {[%clk 0:01:37]} 14... g5 {[%clk 0:02:08.6]} 15. Qh7 {[%clk
0:01:10.8]} 15... Kf8 {[%clk 0:02:05.2]} 16. Qh6+ {[%clk 0:01:07.8]} 16... Rg7
{[%clk 0:02:03.2]} 17. Bxg5 {[%clk 0:01:05.2]} 17... Bxf2+ {[%clk 0:02:03.3]}
18. Ke2 {[%clk 0:01:05.1]} 18... Ba6+ {[%clk 0:01:55.6]} 19. Nc4 {[%clk
0:01:02.7]} 19... Bxc4+ {[%clk 0:01:15.7]} 20. bxc4 {[%clk 0:01:00.8]} 20... Bd4
{[%clk 0:01:14.4]} 21. Bf6 {[%clk 0:00:39.6]} 21... Bxe5 {[%clk 0:01:14.4]} 22.
Qxg7+ {[%clk 0:00:39.1]} 1-0

[Event "Late-Titled-Tuesday-Blitz-February-06-2024"]
[Site "Chess.com"]
[Date "2024.02.06"]
[Round "6"]
[White "argentum049"]
[Black "Cronos97"]
[Result "1-0"]
[WhiteElo "2468"]
[BlackElo "2203"]
[TimeControl "180+1"]
[EndTime "15:04:27 PST"]
[Termination "argentum049 won by resignation"]

1. d4 {[%clk 0:02:47.4]} 1... Nf6 {[%clk 0:02:59.3]} 2. c4 {[%clk 0:02:46.7]}
2... c5 {[%clk 0:02:58]} 3. d5 {[%clk 0:02:45.7]} 3... e6 {[%clk 0:02:58.4]} 4.
Nc3 {[%clk 0:02:44.8]} 4... exd5 {[%clk 0:02:58.8]} 5. cxd5 {[%clk 0:02:45.7]}
5... d6 {[%clk 0:02:59.2]} 6. Nf3 {[%clk 0:02:46.6]} 6... g6 {[%clk 0:02:58.9]}
7. Bf4 {[%clk 0:02:47.2]} 7... a6 {[%clk 0:02:58]} 8. Nd2 {[%clk 0:02:46.2]}
8... Nbd7 {[%clk 0:02:56.1]} 9. Qa4 {[%clk 0:02:13.7]} 9... Nh5 {[%clk
0:02:51.6]} 10. Qe4+ {[%clk 0:02:07.9]} 10... Qe7 {[%clk 0:02:45.3]} 11. Bxd6
{[%clk 0:02:08.8]} 11... Qxe4 {[%clk 0:02:44.8]} 12. Ndxe4 {[%clk 0:02:09.7]}
12... f5 {[%clk 0:02:43.3]} 13. Bxf8 {[%clk 0:02:04.8]} 13... fxe4 {[%clk
0:02:41.6]} 14. Bd6 {[%clk 0:02:01.8]} 14... Nhf6 {[%clk 0:02:38.9]} 15. f3
{[%clk 0:01:41.1]} 15... exf3 {[%clk 0:02:35.2]} 16. gxf3 {[%clk 0:01:42]} 16...
Kf7 {[%clk 0:02:32.2]} 17. e4 {[%clk 0:01:40.3]} 17... b5 {[%clk 0:02:31.7]} 18.
Bh3 {[%clk 0:01:37.9]} 18... Re8 {[%clk 0:02:24.3]} 19. Be6+ {[%clk 0:01:35.2]}
19... Kg7 {[%clk 0:02:24.1]} 20. Kf2 {[%clk 0:01:22.7]} 20... Bb7 {[%clk
0:02:17]} 21. a4 {[%clk 0:01:13.4]} 21... b4 {[%clk 0:02:16.4]} 22. Ne2 {[%clk
0:01:14.1]} 22... a5 {[%clk 0:01:45.6]} 23. Rac1 {[%clk 0:01:06]} 23... Rac8
{[%clk 0:01:44.8]} 24. b3 {[%clk 0:01:02.4]} 24... Ba6 {[%clk 0:01:43.7]} 25.
Rc2 {[%clk 0:00:57.7]} 25... c4 {[%clk 0:01:43.8]} 26. bxc4 {[%clk 0:00:53]}
26... Rxc4 {[%clk 0:01:43.4]} 27. Rhc1 {[%clk 0:00:51.5]} 27... Rxc2 {[%clk
0:01:34.3]} 28. Rxc2 {[%clk 0:00:52.4]} 28... Bd3 {[%clk 0:01:28.2]} 29. Rc7
{[%clk 0:00:49.3]} 29... Rd8 {[%clk 0:01:20.5]} 30. Be7 {[%clk 0:00:47.3]} 1-0

[Event "Late-Titled-Tuesday-Blitz-February-06-2024"]
[Site "Chess.com"]
[Date "2024.02.06"]
[Round "6"]
[White "Nf3c5"]
[Black "ACollins05"]
[Result "0-1"]
[WhiteElo "2564"]
[BlackElo "2444"]
[TimeControl "180+1"]
[EndTime "15:04:34 PST"]
[Termination "ACollins05 won on time"]

1. d4 {[%clk 0:03:00.9]} 1... d5 {[%clk 0:02:58.8]} 2. Nf3 {[%clk 0:03:00]} 2...
Nf6 {[%clk 0:02:57.8]} 3. Bg5 {[%clk 0:02:59.1]} 3... Ne4 {[%clk 0:02:56.8]} 4.
Bh4 {[%clk 0:02:58.8]} 4... c5 {[%clk 0:02:56.8]} 5. e3 {[%clk 0:02:54.7]} 5...
Qb6 {[%clk 0:02:56.5]} 6. Nbd2 {[%clk 0:02:48.7]} 6... Qxb2 {[%clk 0:02:48]} 7.
Rb1 {[%clk 0:02:17.1]} 7... Qc3 {[%clk 0:02:47.2]} 8. Bb5+ {[%clk 0:02:16.7]}
8... Bd7 {[%clk 0:02:44.5]} 9. Bxd7+ {[%clk 0:02:11.1]} 9... Nxd7 {[%clk
0:02:45.4]} 10. Rxb7 {[%clk 0:01:57]} 10... e6 {[%clk 0:02:42.2]} 11. O-O {[%clk
0:01:56.3]} 11... Nxd2 {[%clk 0:02:41.9]} 12. Nxd2 {[%clk 0:01:52.8]} 12... cxd4
{[%clk 0:02:41.6]} 13. exd4 {[%clk 0:01:47.3]} 13... Qxd4 {[%clk 0:02:37.3]} 14.
Qe2 {[%clk 0:01:45.3]} 14... Qxh4 {[%clk 0:02:32.2]} 15. Qb5 {[%clk 0:01:37.5]}
15... Rd8 {[%clk 0:02:29.5]} 16. g3 {[%clk 0:01:07.4]} 16... Qf6 {[%clk
0:02:23.7]} 17. c4 {[%clk 0:01:03.4]} 17... Qd4 {[%clk 0:02:06.7]} 18. Rd1
{[%clk 0:00:47]} 18... Bc5 {[%clk 0:02:05.7]} 19. Rxd7 {[%clk 0:00:06.9]} 19...
Rxd7 {[%clk 0:02:01.9]} 20. Qb8+ {[%clk 0:00:06.5]} 20... Rd8 {[%clk 0:02:00.4]}
21. Qb5+ {[%clk 0:00:07.1]} 21... Ke7 {[%clk 0:01:57.2]} 22. Kh1 {[%clk
0:00:06.8]} 22... Rb8 {[%clk 0:01:55.8]} 23. Qc6 {[%clk 0:00:05.8]} 23... Rhc8
{[%clk 0:01:54.3]} 24. Qa4 {[%clk 0:00:06.4]} 24... Rb2 {[%clk 0:01:47.6]} 25.
Nf3 {[%clk 0:00:02.3]} 25... Qxf2 {[%clk 0:01:43.8]} 0-1

[Event "Late-Titled-Tuesday-Blitz-February-06-2024"]
[Site "Chess.com"]
[Date "2024.02.06"]
[Round "6"]
[White "Boninknights"]
[Black "Pawngobblerx2000"]
[Result "0-1"]
[WhiteElo "2342"]
[BlackElo "2515"]
[TimeControl "180+1"]
[EndTime "15:04:46 PST"]
[Termination "Pawngobblerx2000 won by resignation"]

1. d4 {[%clk 0:03:00.9]} 1... d5 {[%clk 0:02:59.7]} 2. Nf3 {[%clk 0:02:59.2]}
2... Nf6 {[%clk 0:02:59.9]} 3. c4 {[%clk 0:02:58.8]} 3... c6 {[%clk 0:03:00.2]}
4. Qb3 {[%clk 0:02:55.8]} 4... dxc4 {[%clk 0:02:59]} 5. Qxc4 {[%clk 0:02:54.7]}
5... Bg4 {[%clk 0:02:59.2]} 6. Nbd2 {[%clk 0:02:52.5]} 6... e6 {[%clk 0:02:59]}
7. g3 {[%clk 0:02:51.1]} 7... Bd6 {[%clk 0:02:57.2]} 8. Bg2 {[%clk 0:02:50]}
8... O-O {[%clk 0:02:57.1]} 9. O-O {[%clk 0:02:48.9]} 9... Qe7 {[%clk
0:02:56.8]} 10. Qb3 {[%clk 0:02:36.7]} 10... Qc7 {[%clk 0:02:35.4]} 11. Nc4
{[%clk 0:02:35.1]} 11... Bxf3 {[%clk 0:02:24.6]} 12. Bxf3 {[%clk 0:02:30.5]}
12... Nbd7 {[%clk 0:02:18.1]} 13. Nxd6 {[%clk 0:02:24.2]} 13... Qxd6 {[%clk
0:02:19]} 14. Qxb7 {[%clk 0:02:20.1]} 14... Qxd4 {[%clk 0:02:18]} 15. Be3 {[%clk
0:02:15.7]} 15... Qe5 {[%clk 0:02:13.5]} 16. b3 {[%clk 0:02:03.6]} 16... Rac8
{[%clk 0:01:53.7]} 17. Qxa7 {[%clk 0:02:00.4]} 17... Rc7 {[%clk 0:01:49.6]} 18.
Qd4 {[%clk 0:01:58.5]} 18... Qa5 {[%clk 0:01:45.9]} 19. Rfd1 {[%clk 0:01:46.7]}
19... Nd5 {[%clk 0:01:39.4]} 20. Bd2 {[%clk 0:01:41.8]} 20... Qa6 {[%clk
0:01:36.5]} 21. a4 {[%clk 0:01:37.7]} 21... c5 {[%clk 0:01:35.1]} 22. Qc4 {[%clk
0:01:34.4]} 22... Qb7 {[%clk 0:01:31.8]} 23. a5 {[%clk 0:01:28]} 23... Ne5
{[%clk 0:01:31.6]} 24. Qc2 {[%clk 0:01:08.5]} 24... Nxf3+ {[%clk 0:01:27]} 25.
exf3 {[%clk 0:01:07.9]} 25... Ra8 {[%clk 0:01:23.7]} 26. Be1 {[%clk 0:01:03.5]}
26... Rc6 {[%clk 0:01:19]} 27. f4 {[%clk 0:01:00.3]} 27... h6 {[%clk 0:01:06.7]}
28. f5 {[%clk 0:00:59.2]} 28... Nb4 {[%clk 0:00:57.5]} 29. Bxb4 {[%clk
0:00:56.1]} 29... cxb4 {[%clk 0:00:57]} 30. fxe6 {[%clk 0:00:53.8]} 30... Rxc2
{[%clk 0:00:55.2]} 0-1

[Event "Late-Titled-Tuesday-Blitz-February-06-2024"]
[Site "Chess.com"]
[Date "2024.02.06"]
[Round "6"]
[White "Felix-Rose"]
[Black "crazy_but_lazy"]
[Result "0-1"]
[WhiteElo "2382"]
[BlackElo "2596"]
[TimeControl "180+1"]
[EndTime "15:04:50 PST"]
[Termination "crazy_but_lazy won by checkmate"]

1. e4 {[%clk 0:02:59.5]} 1... g6 {[%clk 0:02:57.5]} 2. d4 {[%clk 0:02:59.7]}
2... Bg7 {[%clk 0:02:57.9]} 3. Nf3 {[%clk 0:03:00.4]} 3... a6 {[%clk 0:02:57.9]}
4. Nc3 {[%clk 0:02:59.5]} 4... b5 {[%clk 0:02:57.8]} 5. Bd3 {[%clk 0:02:58.2]}
5... d6 {[%clk 0:02:56.9]} 6. O-O {[%clk 0:02:58]} 6... Bb7 {[%clk 0:02:57.1]}
7. a4 {[%clk 0:02:51.7]} 7... b4 {[%clk 0:02:56.4]} 8. Na2 {[%clk 0:02:44.5]}
8... Nf6 {[%clk 0:02:52.7]} 9. Qe1 {[%clk 0:02:38.7]} 9... a5 {[%clk 0:02:51.9]}
10. Bd2 {[%clk 0:02:33.8]} 10... O-O {[%clk 0:02:49.9]} 11. c3 {[%clk
0:02:33.4]} 11... bxc3 {[%clk 0:02:47.3]} 12. Nxc3 {[%clk 0:02:27.4]} 12... Nc6
{[%clk 0:02:46.6]} 13. Rc1 {[%clk 0:02:20.5]} 13... Nb4 {[%clk 0:02:46.9]} 14.
Bb1 {[%clk 0:02:20.7]} 14... Ba6 {[%clk 0:02:47.3]} 15. Nb5 {[%clk 0:02:15.9]}
15... c6 {[%clk 0:02:46.8]} 16. Na3 {[%clk 0:01:57.8]} 16... Bxf1 {[%clk
0:02:46.2]} 17. Qxf1 {[%clk 0:01:55.3]} 17... Rb8 {[%clk 0:02:46]} 18. h3 {[%clk
0:01:55.4]} 18... Nd7 {[%clk 0:02:43.8]} 19. Qe1 {[%clk 0:01:37.2]} 19... c5
{[%clk 0:02:43.2]} 20. d5 {[%clk 0:01:33]} 20... Bxb2 {[%clk 0:02:41.2]} 21. Nb5
{[%clk 0:01:31]} 21... Rxb5 {[%clk 0:02:21.6]} 22. axb5 {[%clk 0:01:29.6]} 22...
Bxc1 {[%clk 0:02:21.9]} 23. Qxc1 {[%clk 0:01:28.6]} 23... a4 {[%clk 0:02:18.6]}
24. Bh6 {[%clk 0:01:27.7]} 24... Qa5 {[%clk 0:01:59.9]} 25. Qb2 {[%clk
0:01:22.9]} 25... f6 {[%clk 0:01:53.4]} 26. Bxf8 {[%clk 0:01:21.7]} 26... Kxf8
{[%clk 0:01:52.6]} 27. h4 {[%clk 0:01:21.4]} 27... a3 {[%clk 0:01:52.4]} 28. Qd2
{[%clk 0:01:14.6]} 28... Kg7 {[%clk 0:01:32]} 29. Ba2 {[%clk 0:01:13.8]} 29...
Qxb5 {[%clk 0:01:32.4]} 30. h5 {[%clk 0:01:13.5]} 30... Nxa2 {[%clk 0:01:29.4]}
31. h6+ {[%clk 0:01:11.3]} 31... Kg8 {[%clk 0:01:27.7]} 32. Qxa2 {[%clk
0:01:11]} 32... Qb2 {[%clk 0:01:27.8]} 33. Qc4 {[%clk 0:01:10.4]} 33... a2
{[%clk 0:01:25.7]} 34. Kh2 {[%clk 0:01:08.9]} 34... a1=Q {[%clk 0:01:20.2]} 35.
e5 {[%clk 0:01:02.9]} 35... Nxe5 {[%clk 0:01:18.1]} 36. Nxe5 {[%clk 0:00:56.3]}
36... Qxe5+ {[%clk 0:01:19]} 37. g3 {[%clk 0:00:57]} 37... Qad4 {[%clk
0:01:19.4]} 38. Qa6 {[%clk 0:00:52.9]} 38... Qxf2+ {[%clk 0:01:19.5]} 39. Kh1
{[%clk 0:00:51.9]} 39... Qh5# {[%clk 0:01:20.2]} 0-1

[Event "Late-Titled-Tuesday-Blitz-February-06-2024"]
[Site "Chess.com"]
[Date "2024.02.06"]
[Round "6"]
[White "sergiochess83"]
[Black "Andrei_Skvortsov"]
[Result "1-0"]
[WhiteElo "2914"]
[BlackElo "2687"]
[TimeControl "180+1"]
[EndTime "15:04:52 PST"]
[Termination "sergiochess83 won by resignation"]

1. d4 {[%clk 0:03:00]} 1... g6 {[%clk 0:02:58.4]} 2. e4 {[%clk 0:02:59.5]} 2...
Bg7 {[%clk 0:02:58.8]} 3. Nf3 {[%clk 0:03:00.1]} 3... c6 {[%clk 0:02:57.9]} 4.
Bd3 {[%clk 0:02:59.9]} 4... d5 {[%clk 0:02:57.8]} 5. e5 {[%clk 0:03:00.6]} 5...
Bg4 {[%clk 0:02:56.6]} 6. Nbd2 {[%clk 0:03:01.2]} 6... f6 {[%clk 0:02:50.7]} 7.
h3 {[%clk 0:02:58.1]} 7... Bd7 {[%clk 0:02:43.4]} 8. O-O {[%clk 0:02:55.6]} 8...
e6 {[%clk 0:02:41.7]} 9. exf6 {[%clk 0:02:42.9]} 9... Nxf6 {[%clk 0:02:37.8]}
10. Ne5 {[%clk 0:02:43.1]} 10... O-O {[%clk 0:02:36.6]} 11. Re1 {[%clk 0:02:43]}
11... Be8 {[%clk 0:02:32.1]} 12. Ndf3 {[%clk 0:02:42.4]} 12... Nbd7 {[%clk
0:02:29.9]} 13. Ng5 {[%clk 0:02:27.3]} 13... Nxe5 {[%clk 0:02:03.2]} 14. dxe5
{[%clk 0:02:26.9]} 14... Nd7 {[%clk 0:01:33]} 15. Nxe6 {[%clk 0:02:25]} 15...
Qe7 {[%clk 0:01:32.3]} 16. Nxf8 {[%clk 0:02:21.8]} 16... Nxf8 {[%clk 0:01:32.7]}
17. c4 {[%clk 0:02:13.3]} 17... d4 {[%clk 0:01:32]} 18. f4 {[%clk 0:02:06.8]}
18... Ne6 {[%clk 0:01:31.2]} 19. Bd2 {[%clk 0:02:00.1]} 19... a5 {[%clk
0:01:30.9]} 20. f5 {[%clk 0:01:50.8]} 20... gxf5 {[%clk 0:01:28.1]} 21. Bxf5
{[%clk 0:01:51.7]} 21... Nc5 {[%clk 0:01:26.5]} 22. Qg4 {[%clk 0:01:47.8]} 22...
d3 {[%clk 0:00:53.5]} 23. Rad1 {[%clk 0:01:31.4]} 23... h5 {[%clk 0:00:40.5]}
24. Qg3 {[%clk 0:01:26.3]} 24... Kh8 {[%clk 0:00:41.1]} 25. Bg5 {[%clk
0:01:13.4]} 25... Qf7 {[%clk 0:00:33.3]} 26. Bxd3 {[%clk 0:01:12.1]} 26... Nxd3
{[%clk 0:00:33.7]} 27. Rxd3 {[%clk 0:01:10]} 27... Qxc4 {[%clk 0:00:33.8]} 28.
Bf6 {[%clk 0:00:59.4]} 1-0